bitfinex/quotes_ETHUSD_20241129
["timestamp","ask_amount","ask_price","bid_price","bid_amount"]
[1732884625977,0.09964636,3584.2,3583.8,2.79025]
[1732884626150,0.09964636,3584.1,3583.6,2.79049]
[1732884626350,0.09962896,3584.3,3584.1,2.79008]
[1732884626556,0.09962896,3584.2,3584.1,2.79008]
[1732884626789,0.09962896,3584.7,3584.1,2.79008]
[1732884626991,0.09962896,3584.6,3584.2,2.79001]
[1732884627193,0.09962896,3584.5,3584.3,2.78993]
[1732884627359,0.09962896,3584.4,3584.3,2.78993]
[1732884627555,0.09962896,3584.7,3584.1,2.79008]
[1732884627754,2.88933253,3584.6,3584.1,2.79008]
[1732884627976,0.09961253,3584.5,3584.1,2.79008]
[1732884628204,0.09961253,3584.4,3584.1,2.79008]
[1732884628383,4.28335169,3584.8,3584.1,2.79008]
[1732884628587,5.00555926,3584.8,3584.2,2.79001]
[1732884628783,0.09958719,3584.7,3584.2,2.79001]
[1732884629115,0.11258719,3584.6,3584.0,2.79013]
[1732884629305,0.09958719,3584.5,3584.2,2.78996]
[1732884629710,0.09958719,3584.5,3584.3,2.78993]
[1732884629885,0.013,3584.6,3584.3,2.78993]
[1732884630085,0.11258719,3584.6,3584.3,2.78993]
[1732884630304,0.013,3584.6,3584.3,2.78993]
[1732884630495,0.11258719,3584.6,3584.3,2.78993]
[1732884630797,0.09958719,3584.7,3584.2,2.79001]
[1732884630999,2.88930719,3584.6,3584.0,2.79014]
[1732884631287,0.09958719,3584.5,3584.0,2.79014]
[1732884631604,0.09958719,3584.5,3584.1,2.79009]
[1732884631786,0.09958719,3584.6,3584.1,2.79009]
[1732884631989,3.69360524,3584.7,3584.1,2.79009]
[1732884632190,0.09958719,3584.6,3584.1,2.79009]
[1732884632419,0.09958719,3584.6,3584.2,2.78999]
[1732884632614,0.90396524,3584.7,3584.2,2.78999]
[1732884634135,0.90396524,3584.7,3584.3,0.04581556]
[1732884634485,0.09958719,3584.7,3584.5,2.78971]
[1732884634717,0.09952603,3585.0,3584.6,2.78964]
[1732884634888,5.57823,3585.4,3584.7,2.78961]
[1732884634889,2.88871603,3585.3,3584.7,2.78961]
[1732884635084,0.09952603,3585.2,3584.7,2.78963]
[1732884635301,0.013,3585.4,3584.9,2.7894]
[1732884635495,0.11252603,3585.4,3584.9,2.7894]
[1732884635706,0.11252603,3585.4,3585.0,0.04529692]
[1732884636136,2.80209,3585.4,3585.0,0.04529692]
[1732884636303,0.09952603,3585.3,3585.0,0.04529692]
[1732884636636,0.09952603,3585.5,3585.1,0.04523234]
[1732884636853,0.09952603,3585.6,3585.1,0.04523234]
[1732884637009,0.2901396,3585.5,3585.1,2.83454234]
[1732884637325,0.09952603,3585.6,3585.3,2.78916]
[1732884637532,0.09952603,3585.7,3585.3,3.57006]
[1732884637693,0.09952603,3585.7,3585.4,0.04496028]
[1732884638130,0.09952603,3585.7,3585.4,2.83403028]
[1732884638321,0.09952603,3585.7,3585.4,0.04496028]
[1732884638501,0.11242723,3585.9,3585.4,2.83404028]
[1732884638807,0.82946912,3585.9,3585.4,2.83404028]
[1732884639239,0.82946912,3585.9,3585.4,0.04496028]
[1732884639739,2.8017,3585.9,3585.4,0.04496028]
[1732884640035,0.09942723,3585.8,3585.4,2.83402028]
[1732884640219,0.013,3585.9,3585.4,2.83402028]
[1732884641036,0.11239834,3585.9,3585.4,0.04496028]
[1732884641400,0.013,3585.9,3585.4,0.04496028]
[1732884641603,0.72008717,3585.9,3585.4,0.04496028]
[1732884641813,0.72008717,3585.9,3585.4,2.83404028]
[1732884642041,0.013,3586.2,3585.5,1.48076169]
[1732884642334,0.013,3586.5,3585.9,2.78863]
[1732884642548,2.78832,3586.4,3585.6,2.78893]
[1732884642712,2.78852,3586.2,3586.0,0.0445313]
[1732884642916,0.557684,3586.1,3585.6,2.78893]
[1732884643440,0.557684,3586.1,3585.7,2.78884]
[1732884643946,2.78831,3586.4,3585.8,2.78876]
[1732884644832,0.563,3586.5,3585.9,2.78869]
[1732884645040,0.66222497,3586.5,3585.9,2.78869]
[1732884645201,0.11222497,3586.5,3585.9,2.78869]
[1732884645402,0.013,3586.5,3585.9,2.78869]
[1732884645602,0.5900425,3586.4,3586.0,2.78854]
[1732884646197,0.013,3586.5,3586.0,2.78854]
[1732884646426,0.09919833,3586.7,3586.1,0.8195]
[1732884646601,0.09919833,3586.7,3586.2,2.78842]
[1732884647014,0.09919833,3586.7,3585.3,3.61360985]
[1732884647015,0.09919833,3586.7,3586.3,0.7737]
[1732884647215,0.09919833,3586.8,3586.3,0.7737]
[1732884647550,3.0,3586.9,3586.4,2.78829]
[1732884647840,3.013,3586.9,3586.4,2.78829]
[1732884648338,3.0,3586.9,3586.4,2.78829]
[1732884648780,0.013,3587.1,3586.4,2.78829]
[1732884649050,3.013,3587.1,3586.5,2.83220061]
[1732884649206,0.09918913,3587.0,3586.5,0.04398061]
[1732884649606,2.78801,3586.8,3586.3,0.7737]
[1732884649809,2.78801,3586.8,3586.6,0.04388934]
[1732884650029,2.78801,3586.8,3586.3,0.7737]
[1732884650343,2.78801,3586.8,3586.7,0.04382481]
[1732884650547,2.78801,3586.8,3586.3,3.56208]
[1732884650838,2.78785,3587.0,3586.3,3.56208]
[1732884651038,0.09919979,3586.9,3586.4,0.0440184]
[1732884651340,2.78785,3587.0,3586.4,2.7883]
[1732884651542,0.09920823,3586.9,3586.5,0.04395387]
[1732884652108,0.09921118,3586.9,3586.5,0.04395387]
[1732884652304,2.78815,3586.6,3586.5,0.04395387]
[1732884652503,3.08988612,3586.6,3586.5,0.04395387]
[1732884652739,2.78827,3586.5,3585.7,3.6218]
[1732884653044,2.78843,3586.3,3585.7,3.6218]
[1732884653204,2.78843,3586.3,3585.8,0.04437]
[1732884653205,2.78847,3586.2,3585.8,0.04437]
[1732884653407,2.78859,3586.1,3585.7,0.833]
[1732884653652,2.78859,3586.1,3585.8,0.04437198]
[1732884653944,2.80174,3585.9,3585.2,2.7892]
[1732884654308,2.78878,3585.8,3585.0,0.833]
[1732884654509,2.78878,3585.8,3585.2,2.78918]
[1732884655213,2.78878,3585.8,3585.0,3.62236]
[1732884655410,2.78878,3585.8,3585.0,0.833]
[1732884655411,2.78877,3585.8,3585.0,0.833]
[1732884655732,2.78923,3585.3,3584.7,2.78958]
[1732884656269,2.78931,3585.2,3584.6,0.776]
[1732884656545,2.78931,3585.2,3584.6,3.56565]
[1732884658212,2.78933,3585.1,3584.6,0.776]
[1732884658543,2.78943,3585.0,3584.6,0.776]
[1732884661668,0.013,3585.3,3584.6,1.18914569]
[1732884661981,0.013,3585.9,3585.2,0.7663]
[1732884662129,8.9,3587.3,3585.2,0.7663]
[1732884662130,0.09940088,3586.1,3585.8,2.78876]
[1732884662332,0.11240088,3586.6,3585.8,2.78876]
[1732884662527,0.09940088,3586.5,3585.9,0.04440451]
[1732884662732,0.09940088,3586.4,3585.9,2.83309451]
[1732884663034,2.88782969,3586.4,3585.9,0.04440451]
[1732884663235,0.66839766,3586.4,3585.9,0.04440451]
[1732884663436,0.013,3586.6,3585.9,0.04440451]
[1732884663665,0.013,3586.6,3585.9,2.78869]
[1732884663870,0.013,3586.6,3586.0,0.04433996]
[1732884664168,2.78836,3586.4,3586.0,0.04433996]
[1732884664333,2.78828,3586.5,3586.0,0.04433996]
[1732884664538,2.88779941,3586.5,3585.9,2.7887]
[1732884664846,0.09951941,3586.4,3586.0,0.04433996]
[1732884665256,2.88787941,3586.4,3586.0,0.04433996]
[1732884665429,0.09951941,3586.3,3585.9,2.78868]
[1732884665630,0.09951941,3586.5,3586.0,2.83290996]
[1732884665868,2.80118,3586.6,3586.0,2.83290996]
[1732884665869,0.09951941,3586.4,3586.0,2.83290996]
[1732884666375,0.09951941,3586.5,3586.1,2.78853]
[1732884666669,0.09951941,3586.4,3586.3,2.78838]
[1732884666880,0.09951941,3586.7,3586.3,2.83250454]
[1732884667087,0.09951941,3586.6,3586.3,2.83250454]
[1732884667287,0.013,3587.0,3586.3,2.83250454]
[1732884667288,0.09951941,3586.8,3586.4,2.78825]
[1732884667572,2.80085,3587.0,3586.3,2.83250454]
[1732884667573,0.09951941,3586.7,3586.3,2.83250454]
[1732884667881,2.78813,3586.7,3586.4,0.04406]
[1732884668067,0.09951941,3586.6,3586.1,2.78853]
[1732884668378,0.09951941,3586.6,3586.2,0.04418907]
[1732884668756,0.09951941,3586.7,3586.2,0.04418907]
[1732884669084,2.78801,3586.8,3586.2,2.83262907]
[1732884669377,2.88764111,3586.7,3586.2,0.04418907]
[1732884669583,0.013,3586.4,3586.2,0.04418907]
[1732884669883,2.90094111,3586.4,3585.8,2.78877]
[1732884670084,0.09956111,3586.3,3585.9,0.04431633]
[1732884671290,0.09956111,3586.3,3585.9,2.83300633]
[1732884671580,0.013,3586.4,3585.9,2.83300633]
[1732884671782,0.11256111,3586.4,3585.9,2.83300633]
[1732884672141,0.11256111,3586.4,3586.0,2.7886]
[1732884672458,0.09956111,3586.4,3586.1,0.04418823]
[1732884672669,2.78816,3586.6,3585.8,2.78875]
[1732884672670,0.099548,3586.5,3586.0,2.78856]
[1732884672844,2.887708,3586.6,3586.1,0.04418823]
[1732884673043,0.099548,3586.5,3586.1,0.04418823]
[1732884673579,0.099548,3586.5,3586.1,2.83268823]
[1732884673782,0.099548,3586.7,3586.3,2.78838]
[1732884674085,3.080911,3587.0,3586.3,2.78838]
[1732884674086,0.099548,3586.6,3586.3,2.78838]
[1732884674395,0.099548,3586.8,3586.4,0.04400353]
[1732884674545,0.099548,3586.7,3586.4,0.04400353]
[1732884674883,0.099548,3586.8,3586.5,2.83209899]
[1732884675178,0.099548,3586.9,3586.5,0.04393899]
[1732884675480,0.099548,3586.8,3586.5,2.83215899]
[1732884675659,0.099548,3586.9,3586.5,2.83215899]
[1732884675843,0.099548,3586.8,3586.5,2.83215899]
[1732884676156,0.099548,3586.9,3586.5,2.83215899]
[1732884679452,0.09951012,3586.9,3586.5,2.83215899]
[1732884680346,0.013,3587.0,3586.5,2.83215899]
[1732884680546,0.11251012,3587.0,3586.5,2.83215899]
[1732884681083,0.11251012,3587.0,3586.5,0.04393899]
[1732884681379,3.09091001,3587.0,3586.5,0.04393899]
[1732884681569,2.78803,3586.8,3586.5,0.04393899]
[1732884682085,2.8875621,3586.7,3586.1,2.78853]
[1732884682283,2.78803,3586.8,3586.6,0.04376553]
[1732884682464,2.88757713,3586.7,3586.1,2.78853]
[1732884682783,0.09947713,3586.6,3586.2,2.78844]
[1732884682956,2.7881,3586.7,3586.2,2.78844]
[1732884683369,2.7881,3586.7,3586.0,3.58116]
[1732884683557,2.7881,3586.7,3586.0,0.7926]
[1732884684087,2.7881,3586.7,3586.1,2.78848]
[1732884684577,2.7881,3586.7,3586.2,2.78846]
[1732884685245,2.78794,3586.9,3586.2,2.78846]
[1732884685450,0.09947754,3586.8,3586.2,2.78846]
[1732884685646,2.88747754,3586.8,3586.3,2.78837]
[1732884685873,2.788,3586.8,3586.3,2.78837]
[1732884686057,0.09947633,3586.7,3586.3,5.57674]
[1732884686263,3.47528133,3586.9,3586.3,2.78834]
[1732884686594,0.72708346,3586.8,3586.4,2.78826]
[1732884686886,2.88746285,3586.9,3586.2,2.78845]
[1732884687187,2.88755285,3586.8,3586.2,2.78845]
[1732884687352,0.09949285,3586.8,3586.2,2.78845]
[1732884687552,2.88746368,3586.9,3586.3,2.78834]
[1732884687791,0.09952368,3586.8,3586.3,2.78834]
[1732884688091,0.09952368,3586.8,3586.4,2.78825]
[1732884688275,0.09952368,3586.9,3586.6,2.78815]
[1732884688588,0.55,3587.1,3586.7,2.78806]
[1732884688796,0.09952368,3587.2,3586.7,2.78806]
[1732884688797,0.09952368,3587.0,3586.9,2.78792]
[1732884689147,2.78751,3587.5,3587.0,2.7878]
[1732884689455,0.09965888,3587.4,3587.0,2.7878]
[1732884689651,0.09965888,3587.3,3587.1,2.78776]
[1732884689895,0.09965888,3587.2,3587.1,2.78776]
[1732884690047,0.09965888,3587.6,3587.1,2.78776]
[1732884690389,0.09967488,3587.5,3587.1,3.58626]
[1732884690693,0.09967488,3587.4,3587.2,2.78764]
[1732884690855,0.09967488,3587.6,3587.3,2.78761]
[1732884691055,0.09967488,3587.5,3587.3,2.78761]
[1732884691251,0.09967488,3587.4,3587.3,2.78761]
[1732884691463,0.09967488,3587.8,3587.3,2.78761]
[1732884691695,0.09967488,3587.7,3587.3,2.78761]
[1732884691856,0.09967488,3587.6,3587.3,2.78761]
[1732884692094,0.09967488,3587.5,3587.3,2.78761]
[1732884692400,0.09967488,3587.4,3587.3,2.78761]
[1732884692589,0.09967488,3587.7,3587.3,2.78761]
[1732884692790,0.09967488,3587.6,3587.4,2.78753]
[1732884692991,0.09967488,3587.5,3587.4,2.78753]
[1732884693388,0.09967488,3587.5,3587.1,3.58623]
[1732884693389,0.09967488,3587.5,3587.2,2.78762]
[1732884693589,0.09967488,3587.4,3587.2,2.78762]
[1732884693826,2.88699488,3587.7,3587.1,3.58625]
[1732884694026,3.45450037,3587.6,3587.3,0.04327528]
[1732884694229,0.09967488,3587.5,3587.2,0.04333979]
[1732884694397,3.35482549,3587.6,3587.4,0.04321078]
[1732884694592,3.35482549,3587.6,3587.3,0.04327528]
[1732884694593,0.09969297,3587.5,3587.3,0.04327528]
[1732884694793,0.09969297,3587.4,3587.3,0.04327528]
[1732884695029,0.09969297,3587.4,3587.1,2.78775]
[1732884695234,2.7874,3587.6,3587.3,0.04327528]
[1732884695391,0.09969112,3587.5,3587.2,0.04333979]
[1732884695595,2.7874,3587.6,3587.4,0.04321078]
[1732884695795,2.7874,3587.6,3587.1,2.78775]
[1732884695796,0.09968873,3587.5,3587.3,0.04327528]
[1732884696103,0.09968873,3587.4,3586.9,2.78784]
[1732884696304,0.09968873,3587.3,3586.9,2.78787]
[1732884696497,0.09968873,3587.3,3587.1,2.78776]
[1732884696829,0.09968873,3587.5,3587.1,2.78776]
[1732884696995,0.09968535,3587.4,3587.1,2.78776]
[1732884697333,0.09968535,3587.5,3587.1,2.78776]
[1732884697720,0.09968535,3587.4,3586.9,5.57573]
[1732884697899,0.09968535,3587.5,3587.0,2.78781]
[1732884698098,0.09968535,3587.4,3587.0,2.78781]
[1732884698299,0.09968535,3587.5,3587.1,2.78776]
[1732884698624,0.09968535,3587.5,3587.2,2.78768]
[1732884701339,0.09968535,3587.5,3587.0,5.57558]
[1732884701523,0.09968535,3587.5,3587.0,2.78777]
[1732884701701,0.09968535,3587.5,3587.1,2.78772]
[1732884702542,0.09968535,3587.4,3587.1,2.78772]
[1732884702712,0.09968535,3587.5,3586.8,0.8211]
[1732884703043,2.78773,3587.2,3586.6,2.7881]
[1732884703342,2.88745535,3587.1,3586.6,2.7881]
[1732884703503,0.09968535,3587.0,3586.2,0.8214]
[1732884703701,2.88738535,3587.2,3586.6,2.78814]
[1732884703936,2.88738535,3587.2,3586.3,0.6669795]
[1732884703937,0.09967265,3587.1,3586.7,2.78806]
[1732884704136,0.09967265,3587.0,3586.7,2.78806]
[1732884704444,2.88744265,3587.1,3586.5,2.78818]
[1732884704617,0.09967265,3587.0,3586.5,2.78818]
[1732884705136,0.09967265,3587.0,3586.6,2.78812]
[1732884705303,0.09967265,3587.1,3586.6,2.78812]
[1732884705612,0.09967265,3587.0,3586.6,2.78812]
[1732884706015,0.09967265,3587.0,3586.2,0.8214]
[1732884706220,0.09967265,3586.9,3586.2,0.8214]
[1732884706511,2.78812,3586.7,3586.2,0.8214]
[1732884706816,2.78825,3586.5,3585.9,2.78864]
[1732884707402,2.78825,3586.5,3585.7,3.56414]
[1732884707403,2.78825,3586.5,3585.8,2.78873]
[1732884707615,2.78825,3586.5,3585.9,2.78869]
[1732884707817,2.78833,3586.4,3585.7,6.35293]
[1732884708042,3.347164,3586.5,3585.7,3.56409]
[1732884708252,0.09964144,3586.4,3585.7,3.56409]
[1732884708554,2.78844,3586.3,3585.7,3.56409]
[1732884708932,2.78844,3586.3,3585.8,0.04420362]
[1732884709216,2.78823,3586.5,3585.2,3.059785]
[1732884709416,2.88795868,3586.4,3585.9,0.04413907]
[1732884709736,2.78839,3586.3,3586.0,0.04407452]
[1732884709904,2.78839,3586.3,3585.7,2.78879]
[1732884710111,2.78868,3586.0,3585.8,0.04420362]
[1732884710332,2.78868,3586.0,3585.4,2.78904]
[1732884710541,0.563,3586.1,3585.4,2.78904]
[1732884710800,2.7887,3585.9,3585.5,0.04445673]
[1732884710949,2.78864,3586.0,3585.5,0.04445673]
[1732884711545,3.35157,3586.1,3585.5,2.83345673]
[1732884711716,2.88816784,3586.0,3585.5,0.04445673]
[1732884711903,2.7887,3585.9,3585.5,0.04445673]
[1732884712333,2.7887,3585.9,3585.3,3.54192]
[1732884712732,2.7887,3585.9,3585.4,0.0445213]
[1732884714560,3.402727,3585.9,3585.4,0.0445213]
[1732884714770,2.78901,3585.5,3585.4,0.0445213]
[1732884715069,2.80201,3585.5,3584.9,3.59684]
[1732884715221,2.80201,3585.5,3585.4,0.0445213]
[1732884715425,2.78909,3585.4,3584.9,0.8074]
[1732884715857,0.013,3585.5,3585.0,0.0449351]
[1732884716064,2.80203,3585.5,3585.0,0.0449351]
[1732884716767,2.78909,3585.4,3585.0,0.0449351]
[1732884717225,3.348192,3585.4,3585.0,0.0449351]
[1732884717432,2.78932,3585.1,3585.0,0.0449351]
[1732884717627,2.7894,3585.0,3584.4,3.35594461]
[1732884718369,2.7894,3585.0,3584.4,2.7898]
[1732884718544,2.78925,3585.2,3584.4,2.7898]
[1732884718545,2.78948,3584.9,3584.4,2.7898]
[1732884719153,2.78948,3584.9,3584.3,1.3585022]
[1732884719464,0.013,3585.0,3584.4,2.78986]
[1732884719674,0.013,3585.0,3584.5,2.78978]
[1732884719844,2.8024,3585.0,3584.5,2.78978]
[1732884720048,2.78948,3584.9,3584.3,4.1484322]
[1732884720241,2.78948,3584.9,3584.3,3.58283]
[1732884720435,0.280248,3584.9,3584.3,0.7929]
[1732884720632,2.78955,3584.8,3584.2,2.79001]
[1732884720868,2.78963,3584.7,3584.1,0.762]
[1732884721130,2.78979,3584.5,3583.9,0.54470123]
[1732884721330,2.80291,3584.4,3583.9,0.54470123]
[1732884721534,0.55927,3584.3,3583.9,2.79023]
[1732884721743,0.013,3584.4,3583.8,3.55231]
[1732884721744,0.013,3584.4,3583.8,0.762]
[1732884721941,2.79013,3584.1,3583.5,3.55875]
[1732884722339,2.78994,3584.3,3583.6,2.79047]
[1732884722572,2.79007,3584.2,3583.6,2.79047]
[1732884722938,2.7901,3584.1,3583.5,3.55873]
[1732884723139,0.013,3584.4,3583.5,3.55876]
[1732884723140,2.80287,3584.4,3583.5,3.55876]
[1732884723377,2.79002,3584.2,3583.5,3.55876]
[1732884723563,2.79002,3584.2,3583.6,2.79048]
[1732884724178,2.79002,3584.2,3583.7,0.04591968]
[1732884725033,2.7901,3584.1,3583.7,0.04591968]
[1732884725446,2.79026,3583.9,3583.5,0.7682]
[1732884725752,2.7901,3584.1,3583.3,2.79071]
[1732884725753,2.79034,3583.8,3583.3,2.79071]
[1732884725953,2.79034,3583.8,3583.6,0.04616475]
[1732884725954,2.79047,3583.7,3583.6,0.04616475]
[1732884726281,3.069504,3583.7,3583.2,0.8236]
[1732884726447,3.069504,3583.7,3583.6,0.04616475]
[1732884726652,3.069504,3583.7,3583.2,0.8236]
[1732884726653,0.279034,3583.7,3583.2,3.61439]
[1732884726872,0.013,3583.8,3583.6,0.04616475]
[1732884727032,2.79042,3583.7,3583.0,2.79089]
[1732884727234,2.79053,3583.6,3582.9,0.7757]
[1732884727548,2.79045,3583.7,3582.9,0.7757]
[1732884727549,2.79058,3583.5,3582.9,0.7757]
[1732884727761,2.79065,3583.4,3582.9,0.7757]
[1732884728471,0.558115,3583.4,3582.6,1.7901]
[1732884728793,3.059785,3584.2,3582.7,2.79118]
[1732884728794,2.80373,3583.3,3582.7,2.79118]
[1732884729073,0.013,3583.3,3582.8,2.79103]
[1732884729294,0.013,3583.3,3583.0,2.79094]
[1732884729446,0.013,3583.3,3582.8,2.79103]
[1732884729778,0.013,3583.3,3582.9,2.79103]
[1732884730275,0.013,3583.3,3582.6,5.1469003]
[1732884730578,0.013,3583.3,3582.9,2.79101]
[1732884730776,0.013,3583.3,3582.9,2.79102]
[1732884730986,0.013,3583.3,3582.8,2.79108]
[1732884731487,0.013,3583.3,3582.6,1.0]
[1732884731488,2.79119,3582.7,3582.6,1.0]
[1732884731690,2.80419,3582.7,3582.6,1.0]
[1732884732403,0.013,3582.0,3580.7,0.18986025]
[1732884732543,0.013,3581.0,3580.7,0.18986025]
[1732884733246,0.013,3581.0,3580.8,0.04797592]
[1732884733586,0.280548,3580.9,3580.7,0.18986025]
[1732884734189,14.02,3579.8,3579.7,0.43709637]
[1732884734395,14.02,3579.8,3578.5,0.1532966]
[1732884734396,2.79345,3579.8,3578.6,2.79438]
[1732884734680,2.79345,3579.8,3578.5,0.1532966]
[1732884734681,0.55,3580.1,3578.5,0.1532966]
[1732884734840,3.0,3580.0,3578.5,0.1532966]
[1732884735041,0.013,3580.2,3578.8,2.79417]
[1732884735278,0.013,3580.2,3578.5,0.52513226]
[1732884735651,2.80614,3580.2,3579.2,2.7939]
[1732884735861,2.80614,3580.2,3579.3,2.79384]
[1732884736181,5.80583,3580.6,3579.6,2.79354]
[1732884736393,5.80583,3580.6,3578.6,0.8326]
[1732884736394,2.79322,3580.1,3578.6,0.8326]
[1732884736683,3.0,3580.2,3579.3,2.79384]
[1732884736839,3.0,3580.2,3579.4,2.79376]
[1732884737048,3.0,3580.2,3578.7,2.79431]
[1732884737049,3.0,3580.2,3579.0,2.79404]
[1732884737248,3.0,3580.2,3578.7,2.79431]
[1732884737483,0.6059785,3580.1,3578.8,0.41520423]
[1732884737687,0.6059785,3580.1,3579.3,2.79384]
[1732884737887,0.6059785,3580.1,3578.6,0.8326]
[1732884738196,3.013,3580.6,3579.7,2.79352]
[1732884738489,3.013,3580.6,3578.9,2.79415]
[1732884738699,5.80585,3580.6,3579.7,2.79351]
[1732884739488,5.80584,3580.6,3579.5,2.79368]
[1732884739708,3.013,3580.6,3579.8,2.79344]
[1732884739854,0.6072785,3580.5,3579.8,2.79344]
[1732884740563,0.6072785,3580.5,3578.7,3.059785]
[1732884740765,0.013,3580.6,3580.2,2.79307]
[1732884740971,0.013,3580.6,3580.3,2.79306]
[1732884741993,0.280548,3580.9,3580.4,0.04603323]
[1732884742206,0.280548,3580.9,3580.5,2.79286]
[1732884742573,0.280548,3580.9,3580.6,0.04590374]
[1732884742764,0.6353333,3580.8,3580.6,2.83871374]
[1732884742961,3.072785,3581.5,3580.9,2.79259]
[1732884743198,3.072785,3581.5,3580.7,2.79275]
[1732884743504,3.072785,3581.5,3580.6,0.04590374]
[1732884743505,3.072785,3581.5,3581.0,2.7925]
[1732884743675,0.013,3581.5,3581.0,2.79251]
[1732884743874,0.013,3581.5,3581.1,0.04550351]
[1732884744081,0.013,3581.5,3581.2,2.7923]
[1732884744309,0.013,3581.5,3581.3,2.79225]
[1732884744486,5.864965,3581.5,3581.3,0.04537308]
[1732884744798,0.68943534,3581.4,3580.6,2.79278]
[1732884744984,3.0,3581.3,3580.6,2.79278]
[1732884745158,3.0,3581.3,3580.4,2.79297]
[1732884745359,3.5864965,3581.4,3580.8,2.79261]
[1732884745770,0.10299006,3581.3,3580.8,2.79261]
[1732884746101,0.67622716,3581.2,3580.8,2.79261]
[1732884746301,0.67622716,3581.2,3580.3,2.79305]
[1732884746499,3.46864716,3581.2,3579.7,0.7901]
[1732884746716,3.013,3581.0,3579.7,2.79352]
[1732884746880,2.79275,3580.7,3579.7,2.79352]
[1732884747067,0.28958056,3580.6,3579.2,0.7826]
[1732884747397,0.10303163,3580.9,3579.4,2.79368]
[1732884747598,0.10303163,3580.9,3579.2,0.7826]
[1732884747599,2.793,3580.4,3579.5,2.79364]
[1732884747763,0.013,3580.2,3579.4,2.79373]
[1732884748569,0.013,3580.2,3579.2,0.7826]
[1732884748771,0.013,3580.2,3579.2,3.57651]
[1732884748969,0.30391293,3580.2,3579.2,3.57651]
[1732884749199,0.30391293,3580.2,3578.5,0.1532966]
[1732884749200,2.79346,3579.8,3578.5,0.1532966]
[1732884749463,0.16501172,3580.1,3579.1,2.79393]
[1732884749663,0.10319488,3580.1,3578.7,3.059785]
[1732884749888,2.79341,3579.9,3578.9,2.79409]
[1732884750088,3.41346178,3579.9,3578.9,2.79409]
[1732884750264,3.41346178,3579.9,3579.0,2.79405]
[1732884750869,0.62005178,3579.9,3578.8,2.79422]
[1732884751066,0.62005178,3579.9,3579.1,2.79398]
[1732884751410,0.72324554,3579.9,3579.1,2.79398]
[1732884751596,3.72324554,3579.9,3579.1,2.79398]
[1732884751796,0.65165455,3579.8,3579.1,2.79398]
[1732884751995,3.30391293,3580.2,3579.3,2.79381]
[1732884752200,0.10325153,3580.1,3579.3,2.79381]
[1732884752407,3.46911538,3580.2,3579.0,2.79407]
[1732884752408,0.10325153,3580.0,3579.0,2.79407]
[1732884752573,0.10325153,3580.3,3579.8,2.79337]
[1732884752775,0.10325153,3580.3,3579.6,2.7936]
[1732884753011,3.08267515,3580.3,3579.4,2.7937]
[1732884753193,3.08267515,3580.3,3579.2,2.7939]
[1732884753194,2.79322,3580.1,3579.2,2.7939]
[1732884753380,0.10333746,3580.0,3579.0,3.62356]
[1732884753604,0.10333746,3580.0,3579.3,2.7938]
[1732884753907,0.10333746,3580.1,3579.2,2.79385]
[1732884754100,0.10333746,3580.0,3579.4,2.79375]
[1732884754305,0.10333746,3579.9,3579.4,2.79375]
[1732884754622,0.10354885,3579.8,3579.5,2.83860794]
[1732884754772,0.10354885,3580.0,3579.6,2.7936]
[1732884754977,0.10354885,3579.9,3579.8,2.79343]
[1732884755277,0.10354885,3579.9,3579.8,0.04473361]
[1732884755720,0.10354885,3579.9,3579.7,2.79347]
[1732884755892,0.28961515,3580.3,3579.8,0.04473361]
[1732884756092,0.7283617,3580.2,3579.7,2.79347]
[1732884756288,0.10356719,3580.1,3579.6,2.79359]
[1732884756492,0.10356719,3580.0,3579.8,0.04473361]
[1732884756694,0.16533993,3580.3,3579.9,2.83803884]
[1732884756916,0.16533993,3580.6,3580.2,2.79314]
[1732884757421,0.10359939,3580.5,3580.3,0.0445177]
[1732884757576,0.10359939,3580.4,3580.3,0.0445177]
[1732884757776,0.10359939,3580.4,3579.8,2.79345]
[1732884758011,0.10359939,3580.3,3580.0,2.79328]
[1732884758214,0.10359939,3580.2,3580.0,2.79328]
[1732884758515,0.10359939,3580.1,3580.0,2.79328]
[1732884759502,0.26967824,3580.1,3580.0,2.79328]
[1732884760309,0.26967824,3580.1,3579.8,2.79338]
[1732884760489,0.1722291,3580.5,3579.6,2.7936]
[1732884760688,0.27053047,3580.4,3579.9,2.79337]
[1732884760923,0.10405018,3580.3,3580.2,2.79313]
[1732884761326,0.10405018,3580.3,3580.0,2.79329]
[1732884761616,0.10405018,3580.3,3579.6,0.635783]
[1732884761617,0.10405018,3580.2,3580.1,2.79321]
[1732884763105,0.10405018,3580.2,3576.1,2.5705]
[1732884763106,2.79346,3579.8,3578.9,2.79413]
[1732884763367,0.38339618,3579.7,3579.3,2.79383]
[1732884763529,0.10405018,3579.6,3579.3,2.79384]
[1732884763828,3.0,3580.4,3579.8,2.7934]
[1732884764022,0.10436994,3580.3,3579.8,2.7934]
[1732884764212,3.0,3580.4,3579.8,2.7934]
[1732884764213,0.10436994,3580.2,3579.8,2.7934]
[1732884764392,0.10436994,3580.1,3579.8,2.7934]
[1732884764591,0.10436994,3580.0,3579.8,2.7934]
[1732884764825,0.10436994,3579.9,3579.8,2.7934]
[1732884764988,2.79349,3579.8,3579.1,2.79395]
[1732884765319,0.10436994,3579.7,3579.4,2.79375]
[1732884765529,0.10436994,3579.6,3579.5,2.79363]
[1732884765883,0.10436994,3579.6,3579.3,2.79378]
[1732884766092,0.10436994,3579.5,3579.3,2.79378]
[1732884766303,2.79338,3579.9,3579.4,2.79376]
[1732884766518,0.10437644,3579.8,3579.4,2.79376]
[1732884766718,0.10437644,3579.7,3579.4,2.79376]
[1732884766906,0.10437644,3579.6,3579.2,2.79385]
[1732884767145,0.10438583,3579.5,3579.3,2.79378]
[1732884767314,0.279333,3579.9,3579.2,2.79385]
[1732884767505,2.80653,3579.7,3578.8,0.8082]
[1732884767711,0.10438425,3579.6,3578.9,2.79413]
[1732884767947,0.10438425,3579.5,3579.1,2.79399]